fUSD/lending_fUSD_20250818
["ID","MTS","AMOUNT","RATE_DAILY","PERIOD"]
[380032683,1755489334109,-163.1,7.383e-05,2]
[380032684,1755489334555,1000.0,6.6e-07,120]
[380032685,1755489336599,-333.25,7.383e-05,2]
[380032686,1755489340716,-3.65,7.383e-05,2]
[380032687,1755489340768,-150.82508276,7.383e-05,2]
[380032688,1755489343505,1000.0,6.6e-07,120]
[380032689,1755489348186,-300.0,7.383e-05,2]
[380032690,1755489353649,1000.0,6.6e-07,120]
[380032691,1755489356086,-49.17491724,7.383e-05,2]
[380032692,1755489356163,-201.65016552,7.383e-05,2]
[380032693,1755489362518,1000.0,6.6e-07,120]
[380032694,1755489363086,-298.34983448,7.383e-05,2]
[380032695,1755489363117,-103.30033104,7.383e-05,2]
[380032696,1755489363234,-396.69966896,7.383e-05,2]
[380032697,1755489366052,-319.17476332,7.383e-05,2]
[380032698,1755489368805,-180.82523668,7.383e-05,2]
[380032699,1755489368828,-119.17476332,7.383e-05,2]
[380032700,1755489369759,1000.0,6.6e-07,120]
[380032701,1755489370745,-176.88092233,7.383e-05,2]
[380032702,1755489373570,-178.0,7.383e-05,2]
[380032703,1755489373724,-25.94431435,7.383e-05,2]
[380032704,1755489373746,-200.44395577,7.383e-05,2]
[380032705,1755489374849,-154.1662392,7.383e-05,2]
[380032706,1755489374874,-191.39844446,7.383e-05,2]
[380032707,1755489376371,-177.87589278,7.383e-05,2]
[380032708,1755489377016,1000.0,6.6e-07,120]
[380032709,1755489378392,-130.72566276,7.383e-05,2]
[380032710,1755489378415,-51.84692341,7.383e-05,2]
[380032711,1755489379401,-150.0,7.383e-05,2]
[380032712,1755489383979,-271.04288162,7.383e-05,2]
[380032713,1755489386198,1000.0,6.6e-07,120]
[380032714,1755489387249,-27.11019497,7.383e-05,2]
[380032715,1755489387272,-222.88980503,7.383e-05,2]
[380032716,1755489388798,-263.32866506,7.383e-05,2]
[380032717,1755489395280,1000.0,6.6e-07,120]
[380032718,1755489396435,-150.53650955,7.382e-05,2]
[380032719,1755489402060,1000.0,6.6e-07,120]
[380032720,1755489402947,-1195.52805443,7.382e-05,2]
[380032721,1755489409964,1000.0,6.6e-07,120]
[380032722,1755489417714,-4.47194557,7.382e-05,2]
[380032723,1755489417741,-45.54732702,7.382e-05,2]
[380032724,1755489418106,-49.96145482,7.382e-05,2]
[380032726,1755489422492,1000.0,6.6e-07,120]
[380032727,1755489430804,1000.0,6.6e-07,120]
[380032729,1755489437770,1000.0,6.6e-07,120]
[380032730,1755489445116,-276.32457462,7.382e-05,2]
[380032731,1755489445797,1000.0,6.6e-07,120]
[380032732,1755489452456,-151.18219279,7.382e-05,2]
[380032733,1755489452736,-62.27072046,7.382e-05,2]
[380032734,1755489453013,1000.0,6.6e-07,120]
[380032735,1755489460231,-311.33702367,7.382e-05,2]
[380032736,1755489461750,1000.0,6.6e-07,120]
[380032737,1755489463738,613.98,0.00024,120]
[380032738,1755489469465,1000.0,6.6e-07,120]
[380032739,1755489473021,-76.43080105,7.382e-05,2]
[380032740,1755489473047,-179.98019895,7.382e-05,2]
[380032741,1755489477934,1000.0,6.6e-07,120]
[380032742,1755489482124,-67.88419747,7.382e-05,2]
[380032743,1755489482171,-15.23160506,7.382e-05,2]
[380032744,1755489485198,1000.0,6.6e-07,120]
[380032745,1755489489150,-484.76839494,7.382e-05,2]
[380032746,1755489489180,-219.77869452,7.382e-05,2]
[380032747,1755489489294,-280.22130548,7.382e-05,2]
[380032748,1755489491305,1000.0,6.6e-07,120]
[380032749,1755489499881,1000.0,6.6e-07,120]
[380032750,1755489504338,-179.97127466,7.382e-05,2]
[380032751,1755489508643,1000.0,6.6e-07,120]
[380032752,1755489511539,-179.97127466,7.382e-05,2]
[380032753,1755489511655,-140.05745068,7.382e-05,2]
[380032754,1755489518816,-151.0,7.383e-05,2]
[380032755,1755489519488,-98.0,7.752e-05,2]
[380032756,1755489519654,1000.0,6.6e-07,120]
[380032757,1755489525295,-54.0,7.752e-05,2]
[380032758,1755489525343,-54.73057708,8.12e-05,2]
[380032759,1755489527400,1000.0,6.6e-07,120]
[380032760,1755489535413,1000.0,6.6e-07,120]
[380032761,1755489540566,-151.0,7.383e-05,2]
[380032762,1755489540594,-249.76271071,8.119e-05,2]
[380032763,1755489541117,-191.13457858,8.12e-05,2]
[380032764,1755489542495,1000.0,6.6e-07,120]
[380032765,1755489546626,-482.2813888,8.12e-05,2]
[380032766,1755489549901,1000.0,6.6e-07,120]
[380032767,1755489553801,-951.85345554,8.12e-05,2]
[380032768,1755489553828,-153.0,8.121e-05,2]
[380032769,1755489553887,-25.29308892,8.178e-05,2]
[380032770,1755489558509,1000.0,6.6e-07,120]
[380032771,1755489566275,1000.0,6.6e-07,120]
[380032772,1755489574895,1000.0,6.6e-07,120]
[380032773,1755489575595,-944.0,8.178e-05,2]
[380032774,1755489581589,1000.0,6.6e-07,120]
[380032775,1755489582520,-75.23527042,8.178e-05,2]
[380032776,1755489582617,-158.28401566,8.178e-05,2]
[380032777,1755489589383,1000.0,6.6e-07,120]
[380032778,1755489589556,-193.08765133,8.178e-05,2]
[380032779,1755489589584,-500.0,8.219e-05,2]
[380032780,1755489589611,-439.65497615,8.219e-05,2]
[380032781,1755489589684,-24.64953687,8.219e-05,2]
[380032782,1755489596874,1000.0,6.6e-07,120]
[380032783,1755489597016,-72.94139998,8.435e-05,2]
[380032784,1755489597325,-177.05860002,8.435e-05,2]
[380032785,1755489603645,-40.81337528,8.12e-05,2]
[380032786,1755489603677,-222.30662472,8.12e-05,2]
[380032787,1755489608536,1000.0,6.6e-07,120]
[380032788,1755489613913,1000.0,6.6e-07,120]
[380032789,1755489620431,-181.04452342,8.452e-05,2]
[380032790,1755489621966,1000.0,6.6e-07,120]
[380032791,1755489623164,150.0,0.00013425,120]
[380032792,1755489625914,-34.64391852,8.452e-05,2]
[380032793,1755489626176,-80.71216296,8.452e-05,2]
[380032794,1755489629651,1000.0,6.6e-07,120]
[380032795,1755489636864,-168.33010278,8.452e-05,2]
[380032796,1755489636925,1000.0,6.6e-07,120]
[380032797,1755489644800,1000.0,6.6e-07,120]
[380032798,1755489649305,-0.95773426,8.452e-05,2]
[380032799,1755489650326,1000.0,6.6e-07,120]
[380032800,1755489650470,-149.08453148,8.452e-05,2]
[380032801,1755489655552,-159.5254488,8.451e-05,2]
[380032802,1755489657329,1000.0,6.6e-07,120]
[380032803,1755489661978,-2.86740352,8.178e-05,2]
[380032804,1755489662021,-151.53198348,8.178e-05,2]
[380032805,1755489666897,-276.25913115,8.451e-05,2]
[380032806,1755489668977,1000.0,6.6e-07,120]
[380032807,1755489669370,-64.21542005,8.451e-05,2]
[380032808,1755489669399,-113.53001215,8.451e-05,2]
[380032809,1755489675752,1000.0,6.6e-07,120]
[380032810,1755489676117,-61.48314697,8.451e-05,2]
[380032811,1755489683932,1000.0,6.6e-07,120]
[380032812,1755489690185,-13.64546852,8.452e-05,2]
[380032813,1755489690239,-137.24242976,8.462e-05,2]
[380032814,1755489690324,1000.0,6.6e-07,120]
[380032815,1755489699713,1000.0,6.6e-07,120]
[380032816,1755489704848,-44.91072192,8.462e-05,2]
[380032817,1755489705161,-117.84684832,8.462e-05,2]
[380032818,1755489710883,528.0,6.6e-07,120]
[380032819,1755489711519,-201.34030586,8.463e-05,2]
[380032820,1755489725288,-253.43954989,8.462e-05,2]
[380032821,1755489742443,-46.56045011,8.462e-05,2]
[380032822,1755489744259,-82.9872828,8.463e-05,2]
[380032825,1755489760780,-193.48409807,8.433e-05,2]
[380032826,1755489760815,-147.47590193,8.433e-05,2]
[380032828,1755489775806,-168.19821052,8.462e-05,2]
[380032831,1755489796963,-25.2228334,8.462e-05,2]
[380032832,1755489797637,-307.06455022,8.462e-05,2]
[380032836,1755489819863,-158.72436343,8.462e-05,2]
[380032839,1755489846087,-157.37161295,8.334e-05,2]
[380032842,1755489867303,-279.93409391,8.334e-05,2]
[380032844,1755489876339,-169.2423021,8.334e-05,2]
[380032846,1755489881675,-9.3802667,8.333e-05,2]
[380032847,1755489881870,-181.2394666,8.333e-05,2]
[380032848,1755489905777,-167.20115174,8.333e-05,2]
[380032849,1755489905806,-176.94162379,8.333e-05,2]
[380032850,1755489905876,-269.89444894,8.333e-05,2]
[380032851,1755489913135,-400.0,8.333e-05,2]
[380032852,1755489921785,-100.0,8.333e-05,2]
[380032853,1755489922053,-113.03538346,8.333e-05,2]
[380032854,1755489943927,-68.65527966,8.333e-05,2]
[380032855,1755489944133,-14.05067401,8.333e-05,2]
[380032856,1755489957532,-114.05067401,8.333e-05,2]
[380032857,1755489957555,-21.89865198,8.333e-05,2]
[380032858,1755489971698,-27.24601837,8.333e-05,2]
[380032859,1755489971724,-272.75398163,8.333e-05,2]
[380032860,1755489986815,-150.0,8.333e-05,2]
[380032861,1755489995283,-150.0,8.332e-05,2]
[380032862,1755490002047,-292.08,8.332e-05,2]
[380032863,1755490009751,-57.92,8.332e-05,2]
[380032864,1755490010421,-57.5691159,8.332e-05,2]
[380032866,1755490015725,-123.45526988,8.332e-05,2]
[380032867,1755490015748,-18.44530269,8.332e-05,2]
[380032870,1755490032089,-443.15566944,8.332e-05,2]
[380032872,1755490044356,-56.84433056,8.332e-05,2]
[380032873,1755490044843,-310.1205083,8.332e-05,2]
[380032875,1755490050941,-25.72858817,8.332e-05,2]
[380032876,1755490051151,-356.08448482,8.332e-05,2]
[380032879,1755490066001,-108.7970576,8.332e-05,2]
[380032880,1755490066468,-32.4058848,8.332e-05,2]
[380032883,1755490087929,-235.97121087,8.332e-05,2]
[380032884,1755490094112,-177.53506644,8.332e-05,2]
[380032885,1755490097940,804.80617388,0.00013857,10]
[380032889,1755490115688,-156.99,7.489e-05,2]
[380032891,1755490122589,-173.495941,6.759e-05,2]
[380032892,1755490129497,-300.0,6.759e-05,2]
[380032894,1755490137347,-242.51611072,6.759e-05,2]
[380032896,1755490144484,-151.0,6.759e-05,2]
[380032897,1755490157686,-185.53255945,6.759e-05,2]
[380032898,1755490165465,-32.45538883,6.759e-05,2]
[380032899,1755490165794,-140.87955589,7.115e-05,2]
[380032903,1755490178744,-151.0,6.836e-05,2]
[380032904,1755490185517,-150.0,6.836e-05,2]
[380032907,1755490193219,-150.0,6.836e-05,2]
[380032908,1755490217608,-114.46744055,6.833e-05,2]
[380032909,1755490217852,-71.0651189,6.833e-05,2]
[380032910,1755490225528,-187.78006525,6.835e-05,2]
[380032971,1755490236164,-185.45654808,6.834e-05,2]
[380032972,1755490236173,-112.21993475,6.835e-05,2]
[380032973,1755490236183,-300.0,6.835e-05,2]
[380032974,1755490236192,-1200.0,6.835e-05,2]
[380032975,1755490236201,-300.0,6.835e-05,2]
[380032976,1755490236211,-1549.0,6.836e-05,2]
[380032977,1755490236223,-733.85353728,6.836e-05,2]
[380032978,1755490236351,-311.440002,6.836e-05,2]
[380032979,1755490236362,-364.0,6.836e-05,2]
[380032980,1755490236397,-590.70646072,6.836e-05,2]
[380032981,1755490236407,-2000.0,6.836e-05,2]
[380032982,1755490236416,-2000.0,6.836e-05,2]
[380032983,1755490236426,-2000.0,6.836e-05,2]
[380032984,1755490236435,-2000.0,6.836e-05,2]
[380032985,1755490236445,-2000.0,6.836e-05,2]
[380032986,1755490236454,-2000.0,6.836e-05,2]
[380032987,1755490236464,-2000.0,6.836e-05,2]
[380032988,1755490236473,-2120.27234299,6.836e-05,2]
[380032989,1755490236482,-944.12044411,7.115e-05,2]
[380032990,1755490236491,-928.01,7.489e-05,2]
[380032991,1755490236501,-1680.0,7.519e-05,2]
[380032992,1755490236511,-420.0,7.519e-05,2]
[380032993,1755490236519,-9465.45,7.666e-05,2]
[380032994,1755490236529,-1085.0,7.883e-05,2]
[380032995,1755490236539,-500.0,8.219e-05,2]
[380032996,1755490236548,-298.80373767,8.219e-05,2]
[380032997,1755490236558,-2351.0,8.27e-05,2]
[380032998,1755490236568,-587.0,8.27e-05,2]
[380032999,1755490236577,-161.99,8.274e-05,2]
[380033000,1755490236587,-1085.0,8.298e-05,2]
[380033001,1755490236597,-186.57804023,8.333e-05,2]
[380033002,1755490236607,-151.0,8.333e-05,2]
[380033003,1755490236617,-250.0,8.334e-05,2]
[380033004,1755490236627,-299.99,8.334e-05,2]
[380033005,1755490236637,-1393.45199104,8.334e-05,2]
[380033006,1755490236646,-2142.93137436,8.359e-05,2]
[380033007,1755490236656,-2365.16129466,8.359e-05,2]
[380033008,1755490236665,-2587.39121496,8.359e-05,2]
[380033009,1755490236674,-186.61169766,8.36e-05,2]
[380033010,1755490236687,-622.94015487,8.36e-05,2]
[380033011,1755490236696,-1031.78177284,8.36e-05,2]
[380033012,1755490236706,-1254.01169314,8.36e-05,2]
[380033013,1755490236715,-632.07931436,8.36e-05,2]
[380033014,1755490236902,-844.16229909,8.36e-05,2]
[380033015,1755490236913,-23.812051,8.36e-05,2]
[380033036,1755490239016,-1896.88940305,8.36e-05,2]
[380033037,1755490239027,-1032.30823233,8.36e-05,2]
[380033038,1755490239041,-666.16330142,8.36e-05,2]
[380033039,1755490239051,-150.0,8.361e-05,2]
[380033040,1755490239060,-183.83669858,8.369e-05,2]
[380033041,1755490239071,-1157.13865917,8.369e-05,2]
[380033042,1755490239095,-1156.1076,8.369e-05,2]
[380033043,1755490239240,-505.0,8.369e-05,2]
[380033044,1755490239251,-5771.766,8.369e-05,2]
[380033046,1755490239517,-321684.28520985,8.369e-05,2]
[380033047,1755490239527,-300.0,8.463e-05,2]
[380033048,1755490239536,-150.0,8.463e-05,2]
[380033049,1755490239546,-151.71072159,8.463e-05,2]
[380033050,1755490239555,-162.73,8.464e-05,2]
[380033051,1755490239564,-150.99,8.476e-05,2]
[380033052,1755490239573,-911.25,8.476e-05,2]
[380033053,1755490239582,-5722.57,8.476e-05,2]
[380033054,1755490239592,-162.73,8.476e-05,2]
[380033055,1755490239601,-162.73,8.488e-05,2]
[380033056,1755490239610,-150.0,8.49e-05,5]
[380033057,1755490239620,-259.73742721,8.49e-05,5]
[380033058,1755490239629,-162.73,8.5e-05,2]
[380033059,1755490239638,-162.73,8.512e-05,2]
[380033060,1755490239647,-162.73,8.524e-05,2]
[380033061,1755490239657,-162.73,8.536e-05,2]
[380033062,1755490239666,-203.4,8.579e-05,2]
[380033063,1755490239675,-1085.0,8.735e-05,2]
[380033064,1755490239684,-152.0,8.75e-05,2]
[380033065,1755490239694,-189.24,8.978e-05,2]
[380033066,1755490239703,-371765.4009385,9.045e-05,2]
[380033067,1755490239713,-2162.55049837,9.062e-05,2]
[380033068,1755490239722,-1000.0,9.08e-05,2]
[380033069,1755490239732,-3292.0,9.097e-05,2]
[380033070,1755490239743,-823.0,9.097e-05,2]
[380033071,1755490239753,-250.0,9.165e-05,2]
[380033072,1755490239761,-250.0,9.166e-05,2]
[380033073,1755490239771,-153.0,9.166e-05,2]
[380033074,1755490239779,-1085.0,9.195e-05,2]
[380033075,1755490239788,-255.0,9.309e-05,2]
[380033076,1755490239798,-2700.0,9.538e-05,2]
[380033077,1755490239808,-154.0,9.583e-05,2]
[380033078,1755490239817,-1000.0,9.59e-05,2]
[380033079,1755490239826,-1000.0,9.59e-05,2]
[380033080,1755490239835,-190457.4337,9.591e-05,2]
[380033081,1755490239844,-1000.0,9.591e-05,2]
[380033082,1755490239854,-1142.083,9.591e-05,2]
[380033083,1755490239863,-469.2079,9.591e-05,2]
[380033084,1755490239873,-186.57804022,9.591e-05,2]
[380033085,1755490239882,-42979.22250536,9.599e-05,2]
[380033086,1755490239891,-303.03,9.605e-05,2]
[380033087,1755490239900,-271.9,9.617e-05,2]
[380033088,1755490239910,-413072.6677095,9.649e-05,2]
[380033089,1755490239919,-161.99,9.653e-05,2]
[380033090,1755490239929,-27041.99,9.67e-05,2]
[380033091,1755490239939,-17653.78,9.67e-05,2]
[380033092,1755490239948,-7573.41,9.67e-05,2]
[380033093,1755490239957,-1085.0,9.679e-05,2]
[380033094,1755490239967,-420.86214622,9.779e-05,2]
[380033095,1755490239976,-187.78006525,9.779e-05,2]
[380033096,1755490239985,-1000.0,9.779e-05,2]
[380033097,1755490239995,-160.0,9.779e-05,2]
[380033098,1755490240004,-1000.0,9.779e-05,2]
[380033099,1755490240013,-1000.0,9.779e-05,2]
[380033100,1755490240023,-1000.0,9.779e-05,2]
[380033101,1755490240032,-8317.04024091,9.779e-05,2]
[380033102,1755490240041,-1000.0,9.779e-05,2]
[380033103,1755490240050,-1000.0,9.779e-05,2]
[380033105,1755490240060,-151.0,9.779e-05,2]
[380033107,1755490240069,-1000.0,9.779e-05,2]
[380033108,1755490240078,-1000.0,9.779e-05,2]
[380033110,1755490240088,-300.0,9.779e-05,2]
[380033112,1755490240097,-1000.0,9.779e-05,2]
[380033114,1755490240107,-1000.0,9.779e-05,2]
[380033116,1755490240116,-1000.0,9.779e-05,2]
[380033118,1755490240125,-1000.0,9.779e-05,2]
[380033120,1755490240135,-1000.0,9.779e-05,2]
[380033122,1755490240144,-1000.0,9.779e-05,2]
[380033124,1755490240154,-200.80846246,9.779e-05,2]
[380033125,1755490240163,-646.65982734,9.779e-05,2]
[380033127,1755490240172,-3000.0,9.779e-05,2]
[380033129,1755490240182,-248.71531821,9.779e-05,2]
[380033131,1755490240191,-151.0,9.779e-05,2]
[380033133,1755490240200,-151.0,9.779e-05,2]
[380033134,1755490240209,-151.0,9.779e-05,2]
[380033136,1755490240222,-151.0,9.779e-05,2]
[380033138,1755490240231,-151.0,9.779e-05,2]
[380033140,1755490240240,-151.0,9.779e-05,2]
[380033142,1755490240250,-151.0,9.779e-05,2]
[380033144,1755490240261,-151.0,9.779e-05,2]
[380033146,1755490240271,-151.0,9.779e-05,2]
[380033148,1755490240282,-151.0,9.779e-05,2]
[380033149,1755490240297,-151.0,9.779e-05,2]
[380033151,1755490240314,-151.0,9.779e-05,2]
[380033153,1755490240324,-151.0,9.779e-05,2]
[380033155,1755490240334,-151.0,9.779e-05,2]
[380033157,1755490240344,-151.0,9.779e-05,2]
[380033159,1755490240354,-151.0,9.779e-05,2]
[380033160,1755490240365,-8624.77072982,9.834e-05,2]
[380033162,1755490240375,-170.0,9.836e-05,7]
[380033164,1755490240385,-500.0,9.836e-05,2]
[380033166,1755490240394,-500.0,9.863e-05,2]
[380033168,1755490240404,-592.89,9.884e-05,2]
[380033169,1755490240414,-8943.88724682,9.889e-05,2]
[380033170,1755490240423,-150.0,9.9e-05,2]
[380033171,1755490240432,-9274.81107495,9.944e-05,2]
[380033172,1755490240441,-214.91943705,9.955e-05,2]
[380033173,1755490240450,-742.5409,9.973e-05,2]
[380033174,1755490240460,-9617.97908473,9.999e-05,2]
[380033175,1755490240469,-271.37148284,0.0001,2]
[380033176,1755490240478,-301.0,0.0001,2]
[380033177,1755490240487,-200.0,0.0001,2]
[380033178,1755490240496,-151.0,0.0001,2]
[380033179,1755490240506,-151.0,0.0001,2]
[380033180,1755490240515,-151.0,0.0001,2]
[380033181,1755490240524,-151.0,0.0001,2]
[380033182,1755490240533,-151.0,0.0001,2]
[380033183,1755490240542,-151.0,0.0001,2]
[380033184,1755490240551,-151.0,0.0001,2]
[380033185,1755490240562,-151.0,0.0001,2]
[380033186,1755490240572,-151.0,0.0001,2]
[380033187,1755490240581,-151.0,0.0001,2]
[380033188,1755490240591,-151.0,0.0001,2]
[380033189,1755490240601,-151.0,0.0001,2]
[380033190,1755490240611,-151.0,0.0001,2]
[380033191,1755490240620,-151.0,0.0001,2]
[380033192,1755490240629,-151.0,0.0001,2]
[380033193,1755490240639,-500.0,0.0001,2]
[380033194,1755490240648,-500.0,0.0001,2]
[380033195,1755490240658,-500.0,0.0001,2]
[380033196,1755490240667,-500.0,0.0001,2]
[380033197,1755490240677,-500.0,0.0001,2]
[380033198,1755490240687,-500.0,0.0001,2]
[380033199,1755490240697,-500.0,0.0001,2]
[380033200,1755490240706,-339.58068367,0.0001,2]
[380033201,1755490240716,-500.0,0.0001,2]
[380033202,1755490240725,-500.0,0.0001,2]
[380033203,1755490240734,-500.0,0.0001,2]
[380033204,1755490240744,-500.0,0.0001,2]
[380033205,1755490240754,-500.0,0.0001,2]
[380033206,1755490240765,-500.0,0.0001,2]
[380033207,1755490240774,-500.0,0.0001,2]
[380033208,1755490240783,-151.0,0.0001,2]
[380033209,1755490240793,-151.0,0.0001,2]
[380033210,1755490240802,-151.0,0.0001,2]
[380033211,1755490240811,-151.0,0.0001,2]
[380033212,1755490240820,-500.0,0.0001,2]
[380033213,1755490240830,-151.0,0.0001,2]
[380033214,1755490240840,-151.0,0.0001,2]
[380033215,1755490240849,-500.0,0.0001,2]
[380033216,1755490240858,-151.0,0.0001,2]
[380033217,1755490240868,-500.0,0.0001,2]
[380033218,1755490240877,-151.0,0.0001,2]
[380033219,1755490240886,-500.0,0.0001,2]
[380033220,1755490240896,-151.0,0.0001,2]
[380033221,1755490240905,-151.0,0.0001,2]
[380033222,1755490240914,-151.0,0.0001,2]
[380033223,1755490240924,-151.0,0.0001,2]
[380033224,1755490240933,-151.0,0.0001,2]
[380033225,1755490240943,-151.0,0.0001,2]
[380033226,1755490240952,-151.0,0.0001,2]
[380033227,1755490240961,-151.0,0.0001,2]
[380033228,1755490240970,-151.0,0.0001,2]
[380033229,1755490240979,-151.0,0.0001,2]
[380033230,1755490240988,-151.0,0.0001,2]
[380033231,1755490240997,-151.0,0.0001,2]
[380033232,1755490241007,-151.0,0.0001,2]
[380033233,1755490241017,-1006.97904764,0.0001,2]
[380033234,1755490241026,-4609.0,0.00010007,2]
[380033235,1755490241036,-1152.0,0.00010007,2]
[380033236,1755490241045,-9973.84431086,0.00010054,2]
[380033237,1755490241055,-500.0,0.00010055,2]
[380033238,1755490241064,-10342.87655036,0.00010109,2]
[380033239,1755490241073,-500.0,0.0001011,2]
[380033240,1755490241083,-10725.56298273,0.00010164,2]
[380033241,1755490241092,-28078.0,0.00010164,2]
[380033242,1755490241101,-500.0,0.00010165,2]
[380033243,1755490241111,-1085.0,0.00010188,2]
[380033244,1755490241120,-454379.9344804,0.00010196,2]
[380033245,1755490241129,-546.942,0.000102,2]
[380033246,1755490241139,-9572.826,0.000102,2]
[380033247,1755490241148,-1000.0,0.00010215,2]
[380033248,1755490241157,-11122.40881309,0.00010219,2]
[380033249,1755490241166,-500.0,0.0001022,2]
[380033250,1755490241175,-433.0,0.0001024,2]
[380033251,1755490241185,-11533.93793917,0.00010274,2]
[380033252,1755490241194,-500.0,0.00010275,2]
[380033253,1755490241203,-2100.0,0.000103,3]
[380033254,1755490241212,-151.0,0.00010327,2]
[380033255,1755490241226,-11960.69364292,0.00010329,2]
[380033256,1755490241235,-164.67970133,0.00010329,2]
[380033257,1755490241245,-500.0,0.00010329,2]
[380033258,1755490241254,-276.67112621,0.00010329,2]
[380033259,1755490241265,-150.0,0.00010329,2]
[380033260,1755490241274,-500.0,0.00010329,2]
[380033261,1755490241283,-500.0,0.00010329,2]
[380033262,1755490241292,-150.0,0.00010329,2]
[380033263,1755490241303,-150.0,0.00010329,2]
[380033264,1755490241312,-500.0,0.00010329,2]
[380033265,1755490241322,-500.0,0.00010329,2]
[380033266,1755490241331,-150.0,0.00010329,2]
[380033267,1755490241340,-500.0,0.00010329,2]
[380033268,1755490241350,-500.0,0.00010329,2]
[380033269,1755490241359,-500.0,0.00010329,2]
[380033270,1755490241368,-500.0,0.00010329,2]
[380033271,1755490241377,-500.0,0.00010329,2]
[380033272,1755490241386,-500.0,0.00010329,2]
[380033273,1755490241395,-500.0,0.00010329,2]
[380033274,1755490241405,-150.0,0.00010329,2]
[380033275,1755490241414,-151.015736,0.00010329,2]
[380033276,1755490241424,-500.0,0.00010329,2]
[380033277,1755490241433,-206.1224292,0.00010329,2]
[380033278,1755490241442,-500.0,0.00010329,2]
[380033279,1755490241452,-500.0,0.00010329,2]
[380033280,1755490241461,-150.0,0.00010329,2]
[380033281,1755490241470,-500.0,0.00010329,2]
[380033282,1755490241479,-500.0,0.00010329,2]
[380033283,1755490241489,-150.0,0.00010329,2]
[380033284,1755490241498,-500.0,0.00010329,2]
[380033285,1755490241507,-500.0,0.00010329,2]
[380033286,1755490241517,-500.0,0.00010329,2]
[380033287,1755490241526,-500.0,0.00010329,2]
[380033288,1755490241536,-500.0,0.00010329,2]
[380033289,1755490241545,-150.0,0.00010329,2]
[380033290,1755490241555,-617.0,0.00010329,2]
[380033291,1755490241565,-500.0,0.00010329,2]
[380033292,1755490241575,-491.0,0.00010329,2]
[380033293,1755490241584,-3948.0,0.00010329,2]
[380033294,1755490241593,-500.0,0.00010329,2]
[380033295,1755490241603,-1854.0,0.00010329,2]
[380033296,1755490241612,-500.0,0.00010329,2]
[380033297,1755490241622,-500.0,0.00010329,2]
[380033298,1755490241631,-150.0,0.00010329,2]
[380033299,1755490241641,-500.0,0.00010329,2]
[380033300,1755490241650,-1145.0,0.00010329,2]
[380033301,1755490241659,-500.0,0.0001033,2]
[380033302,1755490241668,-214.91943697,0.00010338,2]
[380033303,1755490241678,-12403.23930771,0.00010384,2]
[380033304,1755490241688,-500.0,0.00010385,2]
[380033305,1755490241697,-4200.0,0.000104,3]
[380033306,1755490241707,-12862.1591621,0.00010439,2]
[380033307,1755490241717,-500.0,0.0001044,2]
[380033308,1755490241727,-13338.05905109,0.00010494,2]
[380033309,1755490241736,-500.0,0.00010495,2]
[380033310,1755490241746,-6300.0,0.000105,3]
[380033311,1755490241756,-500.0,0.0001055,2]
[380033312,1755490241765,-8400.0,0.000106,3]
[380033313,1755490241774,-1211.66251023,0.00010602,3]
[380033314,1755490241783,-500.0,0.00010603,2]
[380033315,1755490241793,-500.0,0.00010603,2]
[380033316,1755490241802,-546.59253519,0.00010603,2]
[380033317,1755490241812,-150.0,0.00010603,2]
[380033318,1755490241822,-150.0,0.00010603,2]
[380033319,1755490241831,-526.09706189,0.00010603,2]
[380033320,1755490241841,-500.0,0.00010603,2]
[380033321,1755490241850,-158.86845251,0.00010603,2]
[380033322,1755490241860,-512.84735864,0.00010603,2]
[380033323,1755490241870,-500.0,0.00010603,2]
[380033324,1755490241879,-500.0,0.00010603,2]
[380033325,1755490241889,-500.0,0.00010603,2]
[380033326,1755490241899,-500.0,0.00010603,2]
[380033327,1755490242205,-500.0,0.00010603,2]
[380033328,1755490242265,-500.0,0.00010603,2]
[380033329,1755490242275,-150.92541624,0.00010603,2]